Cogmind - Beta 13 @@@ ROGUE MODE // 2024.06.10 @ 18:16:41 Player: Trantor Result: Self-destructed Performance ------------- Evolutions (0) 0 Regions Visited (4) 800 Robots Destroyed (24) 120 Value Destroyed (697) 697 Prototype IDs (4) 80 Alien Tech Used (0) 0 Bonus (27) 27 TOTAL SCORE: 1724 Bonus ------- High Alert Combat Kills 27 Cogmind --------- Core Integrity 48/250 Matter 300/300 Energy 160/160 System Corruption 0% Temperature Cool (0) Movement Walking (120) Location -7/Recycling Parts ------- > --- POWER (1) -------- Light Nuclear Core > --- PROPULSION (2) --- Aluminum Leg Aluminum Leg > --- UTILITY (2) ------ Medium Storage Unit Core Shielding > --- WEAPON (2) ------- (None) > --- INVENTORY (10) --- Light Ion Engine Aluminum Leg Aluminum Leg Wheel Scrap Engine Improved Heat Sink Medium Matter Pod (100) Peak State ------------ > --- POWER ------------ Light Nuclear Core > --- PROPULSION ------- Aluminum Leg Aluminum Leg > --- UTILITY ---------- Improved Heat Sink Medium Storage Unit > --- WEAPON ----------- Improved EM Shotgun Assault Rifle > --- INVENTORY -------- Light Ion Engine Aluminum Leg Aluminum Leg Aluminum Leg Aluminum Leg Wheel Small Storage Unit Medium Matter Pod Core Shielding Medium Laser [Rating: 14] Favorites ----------- Power Light Nuclear Core Engine Light Ion Engine Power Core Light Nuclear Core Propulsion Aluminum Leg Treads Light Treads Leg Aluminum Leg Utility Medium Storage Unit Device Improved Heat Sink Storage Medium Storage Unit Processor Targeting Computer Protection Core Shielding Weapon Assault Rifle Energy Gun Improved EM Shotgun Ballistic Gun Assault Rifle Build | -11 -10 -10 -10 -7 ------- Run | Yrd Mat Min Sub Rec Slots Evolved . | . . . . . Power . | . . . . . Propulsion . | . . . . . Utility . | . . . . . Weapon . | . . . . . Parts Attached 21 | . 11 5 3 2 Power 3 | . 3 . . . Engine 1 | . 1 . . . Core 2 | . 2 . . . Reactor . | . . . . . Propulsion 10 | . 5 3 . 2 Treads 1 | . 1 . . . Leg 9 | . 4 3 . 2 Wheel . | . . . . . Hover . | . . . . . Flight . | . . . . . Utility 4 | . 2 2 . . Device 1 | . . 1 . . Storage 1 | . 1 . . . Processor 1 | . 1 . . . Hackware . | . . . . . Protection 1 | . . 1 . . Artifact . | . . . . . Weapon 4 | . 1 . 3 . Energy Gun 3 | . 1 . 2 . Energy Cannon . | . . . . . Ballistic Gun 1 | . . . 1 . Ballistic Cannon . | . . . . . Launcher . | . . . . . Special Weapon . | . . . . . Impact Weapon . | . . . . . Slashing Weapon . | . . . . . Piercing Weapon . | . . . . . Special Melee Weapon . | . . . . . Unidentified Prototypes . | . . . . . Parts Lost 7 | . 1 1 1 4 Power . | . . . . . Propulsion 3 | . 1 . . 2 Utility 1 | . . 1 . . Weapon 3 | . . . 1 2 Highest Loss Streak 3 | . 1 1 1 3 To Critical Strikes . | . . . . . Average Slot Usage (%) 96 | . 97 100 99 85 Engine 2 | . 7 . . . Core 11 | . 6 14 14 14 Leg 27 | . 27 28 28 27 Device 1 | . . 5 . . Storage 14 | . 14 14 14 14 Processor 5 | . 12 3 . . Protection 7 | . . 4 14 14 Energy Gun 10 | . 2 14 15 13 Ballistic Gun 15 | . 25 14 12 1 Naked Turns . | . . . . . Heaviest Build 24 | 11 20 21 24 24 Greatest Support 20 | 20 20 20 20 20 Greatest Overweight (x) 1 | . . 1 1 1 Average Overweight (x) . | . . . . . Largest Inventory Capacity 10 | . 10 10 10 10 Average Capacity 9 | . 9 10 10 10 Most Carried 10 | . 10 10 10 10 Average Carried 9 | . 8 9 10 8 Final Capacity 10 | 8 10 10 10 10 Final Carried 10 | 6 10 10 10 8 Class Distribution -------------------- 85% | Mutant 14% | Scavenger-Mutant Dominant Class ---------------- Mutant | -10/Materials Mutant | -10/Mines Mutant | -10/Subcaves Mutant | -7/Recycling Resources | -11 -10 -10 -10 -7 ----------- Run | Yrd Mat Min Sub Rec Matter Collected 699 | 200 244 153 84 18 Remotely . | . . . . . Salvage Created 943 | . 384 203 293 63 Parts 60 | . 24 11 24 1 Haulers Intercepted 2 | . 2 . . . Recyclers Shooed 1 | . 1 . . . Parts Field Recycled . | . . . . . Retrieved Matter . | . . . . . Parts Self-Destructed 16 | . . . 16 . Prevented . | . . . . . Kills | -11 -10 -10 -10 -7 ------- Run | Yrd Mat Min Sub Rec Combat Hostiles Destroyed 19 | . 6 4 8 1 Guns 17 | . 6 4 6 1 AOE 1 | . . . 1 . Classes Destroyed 8 | . 4 . 3 1 Worker 1 | . 1 . . . Hauler 2 | . 2 . . . Turret 1 | . . . 1 . Watcher 1 | . 1 . . . Swarmer 4 | . . . 4 . Grunt 10 | . 6 4 . . Sentry 1 | . . . . 1 Subdweller 4 | . . . 4 . Best Kill Streak 5 | . 4 2 5 1 Combat Bots Only 4 | . 4 2 4 1 Max Kills in Single Turn 2 | . 1 2 1 1 Gunslinging 1 | . . 1 . . Exploded 1 | . . . 1 . Melee . | . . . . . Uniques/NPCs Destroyed . | . . . . . Combat | -11 -10 -10 -10 -7 -------- Run | Yrd Mat Min Sub Rec Hostile Shots Fired 208 | . 27 16 100 65 Missed 59 | . 4 6 32 17 Damage Taken 1287 | . 298 123 386 480 Core 202 | . 62 34 51 55 Absorbed by Shields . | . . . . . Redirected to Shielding 22 | . . . 10 12 Regen/Repaired (Parts) 17 | . 17 . . . Core Remaining (%) 100 | 100 . . . . Volleys Fired 84 | . 29 14 33 8 Largest 2 | . 2 2 2 2 Hottest 95 | . 65 65 95 90 Shots Fired 157 | . 58 23 64 12 Gun 157 | . 58 23 64 12 Cannon . | . . . . . Launcher . | . . . . . Special . | . . . . . Kinetic 95 | . 57 14 20 4 Thermal 31 | . . . 23 8 Explosive . | . . . . . Electromagnetic 31 | . 1 9 21 . Robot Hit Streak 13 | . 11 10 13 5 Robot Miss Streak 2 | . 2 1 2 1 Penetration Max . | . . . . . Secondary Targets 7 | . 4 1 2 . Max Gunslinging Chain 1 | . 1 1 1 . Shots Hit Robots 109 | . 40 21 39 9 Core Hits 51 | . 23 10 15 3 Critical Kills . | . . . . . Critical Parts Destroyed . | . . . . . Critical Strikes . | . . . . . Melee Attacks . | . . . . . Impact . | . . . . . Slashing . | . . . . . Piercing . | . . . . . Sneak Attacks . | . . . . . Combat Hostiles . | . . . . . Follow-up Attacks . | . . . . . Damage Inflicted 1635 | . 449 287 702 197 Guns 1553 | . 449 287 620 197 Cannons . | . . . . . Explosions 82 | . . . 82 . Melee . | . . . . . Ramming . | . . . . . Kinetic 858 | . 449 149 181 79 Thermal 417 | . . . 299 118 Explosive . | . . . . . Electromagnetic 360 | . . 138 222 . Impact . | . . . . . Slashing . | . . . . . Piercing . | . . . . . Highest Corruption . | . . . . . Average Corruption . | . . . . . Corruption Purged . | . . . . . Corruption Blocked . | . . . . . Overload Shots . | . . . . . Overflow Damage . | . . . . . Projectiles . | . . . . . Explosions . | . . . . . Melee . | . . . . . Knockbacks . | . . . . . Impact . | . . . . . Kinetic . | . . . . . Secondary . | . . . . . Self-Inflicted Damage 17 | . . . 17 . Shots 1 | . . . 1 . Rammed . | . . . . . Targets Rammed . | . . . . . Kicked . | . . . . . Crushed . | . . . . . Highest Temperature 270 | . 30 36 . 270 Average Temperature 60 | . 12 18 . 128 Received Heat Transfer 429 | . 162 72 48 147 Siege Activations . | . . . . . Robots Corrupted 1 | . . . 1 . Combat Hostiles 1 | . . . 1 . Parts Fried 3 | . . . 3 . Impact Corruptions . | . . . . . Robots Melted . | . . . . . Combat Hostiles . | . . . . . Parts Melted 2 | . . . 1 1 Heat Transferred 647 | . . . 497 150 Parts Sabotaged . | . . . . . Parts Stolen . | . . . . . Parts Stripped . | . . . . . Power Chain Reactions 1 | . . . 1 . Alert | -11 -10 -10 -10 -7 ------- Run | Yrd Mat Min Sub Rec Peak Influence 710 | . 117 90 . 710 Initial 710 | . . . . 710 Average 176 | . 45 42 . 700 Maximum Alert Level 3 | . . . . 3 Low Security (%) 79 | . 100 100 . . Level 1 . | . . . . . Level 2 . | . . . . 2 Level 3 19 | . . . . 97 Level 4 . | . . . . . Level 5 . | . . . . . High Security . | . . . . . Max Security . | . . . . . Squads Dispatched 1 | . 1 . . . Investigation . | . . . . . Extermination . | . . . . . Reinforcement 1 | . 1 . . . Assault . | . . . . . Garrison . | . . . . . Intercept . | . . . . . Searches Triggered . | . . . . . Construction Impeded . | . . . . . Haulers Reinforced . | . . . . . Active Scanning Responses . | . . . . . Cargo Convoy Interrupts . | . . . . . Stealth | -11 -10 -10 -10 -7 --------- Run | Yrd Mat Min Sub Rec Distress Signals 1 | . 1 . . . Communications Jammed . | . . . . . Distress Signals . | . . . . . Times Spotted 87 | . 11 4 68 4 Peak Tracking Total 6 | . 3 2 6 3 Tactical Retreats 5 | . . . 5 . Traps | -11 -10 -10 -10 -7 ------- Run | Yrd Mat Min Sub Rec Traps Triggered . | . . . . . Indirectly . | . . . . . Trap Hack Attempts . | . . . . . Triggered . | . . . . . Disarmed . | . . . . . Reprogrammed . | . . . . . Reused . | . . . . . Traps Extracted . | . . . . . Installed . | . . . . . Triggered . | . . . . . Machines | -11 -10 -10 -10 -7 ---------- Run | Yrd Mat Min Sub Rec Machines Disabled . | . . . . . Max in Single Turn . | . . . . . Machines Repaired . | . . . . . Machines Dismantled . | . . . . . Machines Sabotaged . | . . . . . Overloaded Fab Kills . | . . . . . Hacking | -11 -10 -10 -10 -7 --------- Run | Yrd Mat Min Sub Rec Machines Accessed 13 | . 7 . . 6 Terminals 8 | . 6 . . 2 Fabricators . | . . . . . Repair Stations 1 | . 1 . . . Recycling Units 4 | . . . . 4 Scanalyzers . | . . . . . Garrison Access . | . . . . . Total Hacks 29 | . 20 . . 9 Successful 17 | . 11 . . 6 Failed 11 | . 8 . . 3 Catastrophic 2 | . . . . 2 Database Lockouts 1 | . 1 . . . Manual 17 | . 14 . . 3 Terminals 23 | . 18 . . 5 Fabricators . | . . . . . Repair Stations 2 | . 2 . . . Recycling Units 4 | . . . . 4 Scanalyzers . | . . . . . Garrison Access . | . . . . . Terminal Hacks 6 | . 5 . . 1 Robot Analysis 1 | . 1 . . . Prototype ID Bank 2 | . 2 . . . Terminal Index 1 | . . . . 1 Unreport Threat 1 | . 1 . . . Hauler Manifests 1 | . 1 . . . Fabricator Hacks . | . . . . . Repair Station Hacks 2 | . 2 . . . Scan Component 1 | . 1 . . . Repair 1 | . 1 . . . Recycling Unit Hacks 4 | . . . . 4 Report Inventory 4 | . . . . 4 Scanalyzer . | . . . . . Garrison Access Hacks . | . . . . . Unauthorized Hacks 5 | . 4 . . 1 Terminals 5 | . 4 . . 1 Botnet 5 | . 4 . . 1 Fabricators . | . . . . . Repair Stations . | . . . . . Recycling Units . | . . . . . Scanalyzers . | . . . . . Garrison Access . | . . . . . Data Cores Recovered . | . . . . . Used . | . . . . . Hacking Detections 9 | . 6 . . 3 Full Trace Events . | . . . . . Feedback Events . | . . . . . Feedback Blocked . | . . . . . Robot Schematics Acquired . | . . . . . Robots Built . | . . . . . Authchips . | . . . . . Time . | . . . . . Total Robot Build Rating . | . . . . . Part Schematics Acquired . | . . . . . Parts Built . | . . . . . Authchips . | . . . . . Time . | . . . . . Total Part Build Rating . | . . . . . Parts Repaired 1 | . 1 . . . Time 38 | . 38 . . . Parts Recycled . | . . . . . Recycled Matter . | . . . . . Retrieved Matter . | . . . . . Retrieved Components . | . . . . . Parts Scanalyzed . | . . . . . Part Schematics Acquired . | . . . . . Parts Damaged . | . . . . . Bothacking | -11 -10 -10 -10 -7 ------------ Run | Yrd Mat Min Sub Rec Used RIF Installer . | . . . . . Robots Hacked . | . . . . . Non-combat . | . . . . . Combat . | . . . . . Robot Hacks Applied . | . . . . . Relay Couplers Released . | . . . . . Fabnet Peak Effective % . | . . . . . Robots Rewired . | . . . . . Allies Hacked . | . . . . . Hacks Repelled . | . . . . . Allies | -11 -10 -10 -10 -7 -------- Run | Yrd Mat Min Sub Rec Total Allies . | . . . . . Largest Group . | . . . . . Highest-Rated Group . | . . . . . Highest-Rated Ally . | . . . . . Total Orders . | . . . . . Ally Attacks . | . . . . . Total Damage . | . . . . . Kills . | . . . . . Allies Corrupted . | . . . . . Allies Melted . | . . . . . Intel | -11 -10 -10 -10 -7 ------- Run | Yrd Mat Min Sub Rec Robot Analysis Total 1 | . 1 . . . Derelict Logs Recovered 3 | . . 3 . . Drone Launches . | . . . . . Drone Recoveries . | . . . . . Exploration | -11 -10 -10 -10 -7 ------------- Run | Yrd Mat Min Sub Rec Turns Passed 2622 | . 902 622 713 385 Spaces Moved 1552 | 1 610 339 321 281 Core . | . . . . . Treads 13 | . 13 . . . Legs 1539 | 1 597 339 321 281 Wheels . | . . . . . Hover . | . . . . . Flight . | . . . . . Fastest Speed 120 | 120 120 120 120 120 Average Speed 145 | 120 120 168 188 121 Slowest Speed 190 | 120 160 190 190 190 Overloaded Moves . | . . . . . Propulsion Burnouts . | . . . . . Robots Hopped . | . . . . . Cave-ins Triggered . | . . . . . Exploration Rate (%) 43 | 1 72 74 13 57 Regions Visited 4 Branch Regions 3 Pre-discovered Areas . | . . . . . Known Exits Taken . | . . . . . Unknown Exits Taken 4 | 1 1 1 1 . Scrap Searched 1 | . . . 1 . Spaces Dug . | . . . . . Terrain Destroyed 7 | . . . 7 . Melee . | . . . . . Projectile 2 | . . . 2 . AOE 5 | . . . 5 . Terrain Rammed . | . . . . . Walls Destroyed . | . . . . . Machines Disabled . | . . . . . Actions | -11 -10 -10 -10 -7 --------- Run | Yrd Mat Min Sub Rec Total 1769 | . 725 369 363 312 Wait 81 | . 58 6 6 11 Move 1548 | . 609 338 320 281 Hop . | . . . . . Pick Up 10 | . 7 2 . 1 Fast Attach 6 | . 4 . 2 . Attach 4 | . 1 1 . 2 Detach 1 | . 1 . . . Swap 11 | . 6 4 1 . Drop 17 | . 10 4 1 2 Fire 84 | . 29 14 33 8 Melee . | . . . . . Ram . | . . . . . Kick . | . . . . . Crush . | . . . . . Escape Stasis . | . . . . . Rewire 7 | . . . . 7 Trap . | . . . . . Miscellaneous . | . . . . . Route ------- -11/Scrapyard -10/Materials (discovered 4 exits: [*Mat x2] / [*Min x2]) -10/Mines (discovered 2 exits: [*Mat] / [*Sub]) -10/Subcaves -7/Recycling History --------- Turn | Location | Event 1 | -11/Scrapyard | Discovered new exit (range 0) 1 | -11/Scrapyard | Entered Materials 150 | -10/Materials | Discovered new exit (range 16) 318 | -10/Materials | Build established: Mutant 329 | -10/Materials | Discovered new exit (range 7) 382 | -10/Materials | Central database locked down 397 | -10/Materials | Discovered new exit (range 5) 468 | -10/Materials | Discovered new exit (range 12) 619 | -10/Materials | Repaired Lgt. Nuclear Core 901 | -10/Materials | Derelicts attacked the area 903 | -10/Materials | Entered Mines 981 | -10/Mines | Learned location of 1 exit from Materials 983 | -10/Mines | Learned Materials interactive machine intel 1001 | -10/Mines | Discovered new exit (range 8) 1333 | -10/Mines | Learned Materials trap positions 1491 | -10/Mines | Discovered new exit (range 10) 1525 | -10/Mines | Entered Subcaves 1638 | -10/Subcaves | Discovered new exit (range 15) 2078 | -10/Subcaves | Core integrity fell below 50% 2238 | -10/Subcaves | Entered Recycling 2243 | -7/Recycling | Found Scrap Engine 2300 | -7/Recycling | Lost 3 parts (2n1w) 2621 | -7/Recycling | Core integrity fell below 20% 2623 | -7/Recycling | Self-destructed Last Messages --------------- Matter reserves: 0 Inventory: Arm. Huge Wheel (46%) Xenon Bombardment Thruster (26%) 02369_ Connecting with Recycling Unit... >>Recycling(Report) Matter reserves: 0 Inventory: Xenon Bombardment Thruster (23%) Adv. ECM Suite (56%) 02482_ Connecting with Terminal... 02609_ Attempting to rewire L-41 Fighter. 02612_ D-53 Grenadier springs to life. 02612_ G-47 Trooper springs to life. 02613_ Attempting to rewire L-41 Fighter. 02613_ G-47 Trooper springs to life. 02614_ Attempting to rewire L-41 Fighter. 02615_ S-27 Virus destroyed. 02615_ L-41 Fighter destroyed. 02618_ Sub. Laser destroyed. Map ----- +----------------------------------------------------+ | | | | | | | | | | | | | | | | | | | | | | | ???????????????????????????????????? | | ???????????????????????????????????? | | ???????????????????????????????????? | | ???????????????????????????????????? | | ????????????????##############?????? | | ????????????????#ig | #?????? | | ????????????????# * Y * #?????? | | ????????????????#i ] g #?????? | | ????????????????# ! #?????? | | ????????????????# Y #?????? | | ????????????????# a #?????? | | ????????????????+ l l #?????? | | ????????????????# ! !##????? | | ????????????????#! u Yg ##???? | | ????????????????#/! i @ #???? | | ????????????????#ug g #???? | | ????????????????#r d g r!d #???? | | ????????????????#####+## #???? | | ??????????????# #???? | | ???????????????????#### # ##???? | | ??????????????????????##### ###????? | | ??????????????????????????# #??????? | | ??????????????????????????# #??????? | | ??????????????????????????# #??????? | | ???????????????????########+#####??? | | ???????????????????+ #??? | | ???????????????????# #??? | | ????????????#??????# """ """ #??? | | ????????????# ?????# """ """ #??? | | ????????????# ###### """ """ #??? | | ????????????# + #??? | | ????????????# # """ """ #??? | | ????+######## # """ """ #??? | | ??? # """ """ #??? | | ??? + #??? | | ??? # #??? | | ???????#"T#"Y"#### # #??? | | ??????????#??????# ##############??? | | ???????????####### #???????????????? | +----------------------------------------------------+ Best States ------------- Heat Dissipation 39 Energy Generation 14 Energy Capacity 160 Matter Stores 300 Matter Capacity 300 Sight Range 16 Terrain Scan Density 10 Core Shielding 20 Evasion (%) 55 Targeting Accuracy 5 Recoil Reduction 1 Item Schematics ----------------- None Robot Schematics ------------------ None Fabricated ------------ Nothing Alien Tech Used ----------------- None Achievements -------------- None Challenges ------------ None Game ------ Seed LaserWardroneTerminator Manual? 0 Play Time 00:18:50 Cumulative 298.4 hours Start 2024.06.10 @ 17:57:59 End 2024.06.10 @ 18:16:41 Sessions 1 Manual Loads 0 Difficulty Rogue Special Mode None Game No. 182 Rogue 138 Adventurer 44 Explorer 0 Win Type - Total 2 Types 2/0/0/0/0/0/0/0/0 Lore% 58 Gallery% 64 Achievement% 58 Wizard Run 0 Options --------- Layout 2 ASCII 0 Keyboard 1 Movement Vi Keybinds 1 Fullscreen 2 Font 24/Smallcaps Map View 50x44 Zoom Use 0% Tactical HUD 1 Map Filters NONE Filters NONE Steam 1 RUN: 6c1698fc-2551-4ada-891e-7fa17896ef6c